fUST/lending_fUST_20240811
["ID","MTS","AMOUNT","RATE_DAILY","PERIOD"]
[334634865,1723368644669,-500.0,0.00020821,3]
[334634866,1723368644680,-500.0,0.00020821,3]
[334634867,1723368644690,-500.0,0.00020821,3]
[334634868,1723368644699,-500.0,0.00020821,3]
[334634869,1723368644709,-500.0,0.00020821,3]
[334634870,1723368644719,-500.0,0.00020821,3]
[334634871,1723368644728,-500.0,0.00020821,3]
[334634872,1723368644738,-500.0,0.00020821,3]
[334634873,1723368644747,-500.0,0.00020821,3]
[334634874,1723368644757,-500.0,0.00020821,3]
[334634875,1723368644767,-500.0,0.00020821,3]
[334634876,1723368644776,-653.84,0.00020821,3]
[334634877,1723368644786,-500.0,0.00020821,3]
[334634878,1723368644796,-509.79773348,0.00020821,3]
[334634879,1723368644806,-500.0,0.00020821,3]
[334634880,1723368644815,-1140.66,0.00020821,3]
[334634881,1723368644825,-500.0,0.00020821,3]
[334634882,1723368644836,-500.0,0.00020821,3]
[334634883,1723368644846,-507.8588349,0.00020821,3]
[334634884,1723368644856,-500.0,0.00020821,3]
[334634885,1723368644866,-500.0,0.00020821,3]
[334634886,1723368644875,-508.02683301,0.00020821,3]
[334634887,1723368644885,-500.0,0.00020821,3]
[334634888,1723368644896,-267.01443212,0.00020821,3]
[334634889,1723368644906,-500.0,0.00020821,3]
[334634890,1723368644915,-500.0,0.00020821,3]
[334634891,1723368644925,-500.0,0.00020821,3]
[334634892,1723368644935,-500.0,0.00020821,3]
[334634893,1723368644944,-500.0,0.00020821,3]
[334634894,1723368644954,-500.0,0.00020821,3]
[334634895,1723368644964,-500.0,0.00020821,3]
[334634896,1723368644974,-727.89,0.00020821,3]
[334634897,1723368644984,-500.0,0.00020821,3]
[334634898,1723368644995,-2369.03,0.00020821,3]
[334634899,1723368645005,-500.0,0.00020821,3]
[334634900,1723368645015,-500.0,0.00020821,3]
[334634901,1723368645025,-500.0,0.00020821,3]
[334634902,1723368645034,-899.28,0.00020821,3]
[334634903,1723368645045,-1278.99,0.00020821,3]
[334634904,1723368645055,-500.0,0.00020821,3]
[334634905,1723368645065,-500.0,0.00020821,3]
[334634906,1723368645075,-942.56,0.00020821,3]
[334634907,1723368645084,-151.0,0.00020821,2]
[334634908,1723368645096,-500.0,0.00020821,3]
[334634909,1723368645106,-500.0,0.00020821,3]
[334634910,1723368645116,-857.04,0.00020821,3]
[334634911,1723368645126,-500.92857237,0.00020821,3]
[334634912,1723368645136,-500.0,0.00020821,3]
[334634913,1723368645148,-151.555561,0.00020821,2]
[334634914,1723368645158,-500.0,0.00020821,3]
[334634915,1723368645169,-504.735801,0.00020821,3]
[334634916,1723368645179,-433.29928993,0.00020821,3]
[334634917,1723368645189,-500.0,0.00020821,3]
[334634918,1723368645198,-500.0,0.00020821,3]
[334634919,1723368645208,-228.112835,0.00020821,2]
[334634920,1723368645221,-500.0,0.00020821,3]
[334634921,1723368645232,-500.0,0.00020821,3]
[334634922,1723368645243,-500.0,0.00020821,3]
[334634923,1723368645253,-234.65402979,0.00020821,3]
[334634924,1723368645264,-500.0,0.00020821,3]
[334634925,1723368645274,-971.11,0.00020821,3]
[334634926,1723368645284,-500.0,0.00020821,3]
[334634927,1723368645294,-2054.59,0.00020821,3]
[334634928,1723368645304,-504.91033331,0.00020821,3]
[334634929,1723368645315,-500.0,0.00020821,3]
[334634930,1723368645325,-500.0,0.00020821,3]
[334634931,1723368645335,-500.0,0.00020821,3]
[334634932,1723368645345,-500.0,0.00020821,3]
[334634933,1723368645354,-500.0,0.00020821,3]
[334634934,1723368645364,-500.0,0.00020821,3]
[334634935,1723368645375,-500.0,0.00020821,3]
[334634936,1723368645387,-500.0,0.00020821,3]
[334634937,1723368645398,-504.43690912,0.00020821,3]
[334634938,1723368645409,-500.0,0.00020821,3]
[334634939,1723368645419,-500.0,0.00020821,3]
[334634940,1723368645429,-500.0,0.00020821,3]
[334634941,1723368645439,-500.0,0.00020821,3]
[334634942,1723368645449,-500.0,0.00020821,3]
[334634943,1723368645459,-500.0,0.00020821,3]
[334634944,1723368645469,-500.0,0.00020821,3]
[334634945,1723368645478,-500.0,0.00020821,3]
[334634946,1723368645488,-500.0,0.00020821,3]
[334634947,1723368645498,-500.0,0.00020821,3]
[334634948,1723368645508,-153.530448,0.00020821,3]
[334634950,1723368645518,-502.78360618,0.00020821,3]
[334634952,1723368645527,-500.0,0.00020821,3]
[334634953,1723368645537,-500.0,0.00020821,3]
[334634954,1723368645547,-500.0,0.00020821,3]
[334634955,1723368645557,-500.0,0.00020821,3]
[334634956,1723368645566,-330.70543868,0.00020821,3]
[334634957,1723368645577,-500.0,0.00020821,3]
[334634958,1723368645586,-751.33,0.00020821,3]
[334634959,1723368645596,-500.0,0.00020821,3]
[334634960,1723368645608,-500.0,0.00020821,3]
[334634961,1723368645618,-500.0,0.00020821,3]
[334634962,1723368645628,-500.0,0.00020821,3]
[334634963,1723368645638,-1252.22,0.00020821,3]
[334634964,1723368645648,-500.0,0.00020821,3]
[334634965,1723368645658,-500.0,0.00020821,3]
[334634966,1723368645667,-500.0,0.00020821,3]
[334634967,1723368645677,-500.0,0.00020821,3]
[334634968,1723368645688,-500.0,0.00020821,3]
[334634969,1723368645698,-507.72423602,0.00020821,3]
[334634970,1723368645707,-500.0,0.00020821,3]
[334634971,1723368645717,-502.26680019,0.00020821,3]
[334634972,1723368645727,-500.0,0.00020821,3]
[334634973,1723368645736,-1591.38,0.00020821,3]
[334634974,1723368645746,-501.15486998,0.00020821,3]
[334634975,1723368645755,-500.0,0.00020821,3]
[334634976,1723368645764,-600.2,0.00020821,3]
[334634977,1723368645773,-761.46,0.00020821,3]
[334634978,1723368645783,-500.0,0.00020821,3]
[334634979,1723368645792,-500.0,0.00020821,3]
[334634980,1723368645802,-500.0,0.00020821,3]
[334634981,1723368645811,-500.0,0.00020821,3]
[334634982,1723368645821,-500.0,0.00020821,3]
[334634983,1723368645830,-500.0,0.00020821,2]
[334634984,1723368645841,-925.76,0.00020821,3]
[334634985,1723368645851,-557.59843134,0.00020821,3]
[334634986,1723368645860,-500.0,0.00020821,3]
[334634987,1723368645869,-1121.43,0.00020821,3]
[334634988,1723368645879,-589.61,0.00020821,3]
[334634989,1723368645888,-543.75393563,0.00020821,3]
[334634990,1723368645898,-500.0,0.00020821,3]
[334634992,1723368645907,-500.0,0.00020821,3]
[334634994,1723368645916,-707.33,0.00020821,3]
[334634995,1723368645926,-151.0,0.00020821,2]
[334634997,1723368645935,-711.68,0.00020821,3]
[334634999,1723368645947,-500.0,0.00020821,3]
[334635000,1723368645958,-500.0,0.00020821,3]
[334635001,1723368645970,-500.0,0.00020821,3]
[334635002,1723368645985,-597.59,0.00020821,3]
[334635003,1723368645999,-516.01754206,0.00020821,3]
[334635004,1723368646013,-500.0,0.00020821,3]
[334635005,1723368646027,-500.0,0.00020821,3]
[334635006,1723368646040,-500.0,0.00020821,3]
[334635007,1723368646055,-702.53,0.00020821,3]
[334635008,1723368646068,-788.42,0.00020821,3]
[334635009,1723368646081,-655.47,0.00020821,3]
[334635010,1723368646094,-500.0,0.00020821,3]
[334635011,1723368646107,-1125.34,0.00020821,3]
[334635012,1723368646119,-500.0,0.00020821,3]
[334635014,1723368646133,-151.0,0.00020821,2]
[334635015,1723368646146,-151.0,0.00020821,2]
[334635016,1723368646158,-151.0,0.00020821,2]
[334635017,1723368646171,-500.0,0.00020821,3]
[334635018,1723368646184,-1304.36,0.00020821,3]
[334635019,1723368646198,-500.0,0.00020821,3]
[334635020,1723368646210,-500.0,0.00020821,3]
[334635022,1723368646223,-500.0,0.00020821,3]
[334635023,1723368646236,-618.27,0.00020821,3]
[334635024,1723368646248,-500.0,0.00020821,3]
[334635025,1723368646261,-933.03,0.00020821,3]
[334635026,1723368646272,-586.88,0.00020821,3]
[334635027,1723368646284,-153.324551,0.00020821,2]
[334635028,1723368646297,-500.0,0.00020821,3]
[334635029,1723368646310,-500.0,0.00020821,3]
[334635030,1723368646322,-500.0,0.00020821,3]
[334635031,1723368646335,-500.0,0.00020821,3]
[334635032,1723368646349,-1292.33,0.00020821,3]
[334635033,1723368646363,-500.0,0.00020821,3]
[334635034,1723368646375,-500.0,0.00020821,3]
[334635035,1723368646386,-500.0,0.00020821,3]
[334635036,1723368646396,-778.23,0.00020821,3]
[334635037,1723368646408,-1336.58,0.00020821,3]
[334635038,1723368646420,-1321.37,0.00020821,3]
[334635039,1723368646434,-912.58,0.00020821,3]
[334635040,1723368646448,-500.0,0.00020821,3]
[334635041,1723368646460,-500.0,0.00020821,3]
[334635042,1723368646471,-1394.83,0.00020821,3]
[334635043,1723368646484,-664.74,0.00020821,3]
[334635044,1723368646495,-500.0,0.00020821,3]
[334635045,1723368646509,-538.09,0.00020821,3]
[334635046,1723368646520,-500.0,0.00020821,3]
[334635047,1723368646530,-500.0,0.00020821,3]
[334635048,1723368646542,-500.0,0.00020821,3]
[334635049,1723368646553,-1063.53,0.00020821,3]
[334635050,1723368646565,-500.0,0.00020821,3]
[334635051,1723368646576,-500.0,0.00020821,3]
[334635052,1723368646587,-500.0,0.00020821,3]
[334635053,1723368646602,-1479.46,0.00020821,3]
[334635054,1723368646616,-500.0,0.00020821,3]
[334635055,1723368646626,-514.87375413,0.00020821,3]
[334635056,1723368646637,-500.0,0.00020821,3]
[334635057,1723368646649,-500.0,0.00020821,3]
[334635058,1723368646660,-500.0,0.00020821,3]
[334635059,1723368646672,-500.0,0.00020821,2]
[334635060,1723368646689,-281.958953,0.00020821,2]
[334635061,1723368646702,-500.0,0.00020821,3]
[334635062,1723368646713,-500.0,0.00020821,3]
[334635063,1723368646728,-500.0,0.00020821,3]
[334635064,1723368646740,-500.0,0.00020821,3]
[334635065,1723368646751,-500.0,0.00020821,3]
[334635066,1723368646762,-500.0,0.00020821,3]
[334635067,1723368646778,-151.0,0.00020821,2]
[334635068,1723368646791,-500.0,0.00020821,3]
[334635069,1723368646801,-500.0,0.00020821,3]
[334635070,1723368646813,-500.0,0.00020821,3]
[334635071,1723368646824,-500.0,0.00020821,3]
[334635072,1723368646837,-500.0,0.00020821,3]
[334635073,1723368646848,-541.41405583,0.00020821,3]
[334635074,1723368646859,-151.0,0.00020821,2]
[334635075,1723368646870,-500.0,0.00020821,3]
[334635076,1723368646882,-510.69151411,0.00020821,3]
[334635077,1723368646893,-500.0,0.00020821,3]
[334635078,1723368646904,-1575.54,0.00020821,3]
[334635079,1723368646916,-151.0,0.00020821,2]
[334635080,1723368646927,-500.0,0.00020821,3]
[334635081,1723368646939,-1923.21,0.00020821,3]
[334635082,1723368646950,-500.0,0.00020821,3]
[334635083,1723368646962,-500.0,0.00020821,3]
[334635084,1723368646973,-1776.5,0.00020821,3]
[334635085,1723368646986,-500.0,0.00020821,3]
[334635086,1723368646997,-512.70932693,0.00020821,3]
[334635087,1723368647009,-500.0,0.00020821,3]
[334635088,1723368647020,-274.87247248,0.00020821,3]
[334635089,1723368647031,-500.0,0.00020821,3]
[334635090,1723368647044,-151.0,0.00020821,2]
[334635091,1723368647058,-500.0,0.00020821,3]
[334635092,1723368647069,-500.0,0.00020821,3]
[334635093,1723368647081,-151.0,0.00020821,2]
[334635094,1723368647092,-500.0,0.00020821,3]
[334635095,1723368647104,-500.0,0.00020821,3]
[334635096,1723368647115,-500.0,0.00020821,3]
[334635097,1723368647127,-151.0,0.00020821,2]
[334635098,1723368647139,-1398.02,0.00020821,3]
[334635099,1723368647150,-500.0,0.00020821,3]
[334635100,1723368647162,-500.0,0.00020821,3]
[334635101,1723368647173,-151.0,0.00020821,2]
[334635102,1723368647184,-500.0,0.00020821,3]
[334635103,1723368647196,-1279.33,0.00020821,3]
[334635104,1723368647207,-500.0,0.00020821,3]
[334635105,1723368647219,-502.22147821,0.00020821,3]
[334635106,1723368647230,-3912.19,0.00020821,3]
[334635107,1723368647242,-500.0,0.00020821,3]
[334635108,1723368647255,-548.94,0.00020821,3]
[334635109,1723368647267,-2357.19,0.00020821,3]
[334635110,1723368647278,-500.0,0.00020821,3]
[334635111,1723368647290,-509.68251179,0.00020821,3]
[334635112,1723368647301,-500.0,0.00020821,3]
[334635113,1723368647312,-500.0,0.00020821,3]
[334635114,1723368647324,-1365.33,0.00020821,3]
[334635115,1723368647335,-2347.78,0.00020821,3]
[334635116,1723368647346,-500.0,0.00020821,3]
[334635117,1723368647358,-500.0,0.00020821,3]
[334635118,1723368647369,-500.0,0.00020821,3]
[334635119,1723368647381,-511.8375352,0.00020821,3]
[334635120,1723368647393,-505.55560885,0.00020821,3]
[334635121,1723368647404,-500.0,0.00020821,3]
[334635122,1723368647415,-152.350723,0.00020821,2]
[334635123,1723368647426,-500.0,0.00020821,3]
[334635124,1723368647437,-2329.05,0.00020821,3]
[334635125,1723368647449,-566.83764694,0.00020821,3]
[334635126,1723368647460,-1548.63,0.00020821,3]
[334635127,1723368647471,-500.0,0.00020821,3]
[334635128,1723368647483,-500.0,0.00020821,3]
[334635129,1723368647495,-500.0,0.00020821,3]
[334635130,1723368647506,-973.06,0.00020821,3]
[334635131,1723368647517,-500.0,0.00020821,3]
[334635132,1723368647528,-500.0,0.00020821,3]
[334635133,1723368647540,-500.0,0.00020821,3]
[334635134,1723368647551,-500.0,0.00020821,3]
[334635135,1723368647562,-500.0,0.00020821,3]
[334635136,1723368647574,-284.536084,0.00020821,2]
[334635137,1723368647585,-500.0,0.00020821,3]
[334635138,1723368647596,-634.14,0.00020821,3]
[334635139,1723368647610,-2232.05,0.00020821,3]
[334635140,1723368647619,-284.536084,0.00020821,2]
[334635141,1723368647629,-500.0,0.00020821,3]
[334635142,1723368647639,-504.47456351,0.00020821,3]
[334635143,1723368647650,-500.0,0.00020821,3]
[334635144,1723368647660,-500.0,0.00020821,3]
[334635145,1723368647670,-151.0,0.00020821,2]
[334635146,1723368647681,-500.0,0.00020821,3]
[334635147,1723368647691,-500.0,0.00020821,3]
[334635148,1723368647853,-11984.64,0.00020821,3]
[334635149,1723368647923,-785.59,0.00020821,3]
[334635150,1723368647937,-151.0,0.00020821,2]
[334635151,1723368647947,-500.0,0.00020821,3]
[334635152,1723368647956,-500.0,0.00020821,3]
[334635153,1723368647967,-3691.95,0.00020821,3]
[334635154,1723368647977,-2252.1,0.00020821,3]
[334635155,1723368647987,-500.0,0.00020821,3]
[334635156,1723368647997,-500.0,0.00020821,3]
[334635157,1723368648007,-500.0,0.00020821,3]
[334635158,1723368648019,-500.0,0.00020821,3]
[334635159,1723368648029,-981.36,0.00020821,3]
[334635160,1723368648039,-2242.55,0.00020821,3]
[334635161,1723368648049,-981.36,0.00020821,3]
[334635162,1723368648059,-981.36,0.00020821,3]
[334635163,1723368648070,-981.36,0.00020821,3]
[334635164,1723368648080,-981.36,0.00020821,3]
[334635165,1723368648090,-500.0,0.00020821,3]
[334635166,1723368648099,-981.36,0.00020821,3]
[334635167,1723368648109,-981.36,0.00020821,3]
[334635168,1723368648119,-981.36,0.00020821,3]
[334635169,1723368648129,-981.36,0.00020821,3]
[334635170,1723368648138,-719.74,0.00020821,3]
[334635171,1723368648147,-981.36,0.00020821,3]
[334635172,1723368648157,-981.36,0.00020821,3]
[334635173,1723368648167,-500.0,0.00020821,3]
[334635174,1723368648177,-981.36,0.00020821,3]
[334635175,1723368648186,-981.36,0.00020821,3]
[334635176,1723368648196,-151.0,0.00020821,2]
[334635177,1723368648206,-151.0,0.00020821,2]
[334635178,1723368648216,-500.0,0.00020821,3]
[334635179,1723368648226,-500.0,0.00020821,3]
[334635180,1723368648235,-598.92,0.00020821,3]
[334635181,1723368648245,-500.0,0.00020821,3]
[334635182,1723368648255,-500.0,0.00020821,3]
[334635183,1723368648264,-1613.35,0.00020821,3]
[334635184,1723368648274,-151.0,0.00020821,2]
[334635185,1723368648284,-500.0,0.00020821,3]
[334635186,1723368648294,-500.0,0.00020821,3]
[334635187,1723368648304,-922.78,0.00020821,3]
[334635188,1723368648313,-623.85,0.00020821,3]
[334635189,1723368648323,-151.0,0.00020821,2]
[334635190,1723368648332,-838.69,0.00020821,3]
[334635191,1723368648341,-1286.22,0.00020821,3]
[334635192,1723368648351,-500.0,0.00020821,3]
[334635193,1723368648361,-461.16824364,0.00020821,3]
[334635194,1723368648371,-151.0,0.00020821,2]
[334635195,1723368648381,-500.0,0.00020821,3]
[334635196,1723368648391,-500.0,0.00020821,3]
[334635197,1723368648400,-1033.98,0.00020821,3]
[334635198,1723368648411,-234.908896,0.00020821,2]
[334635199,1723368648421,-500.0,0.00020821,3]
[334635200,1723368648430,-500.0,0.00020821,3]
[334635201,1723368648440,-1625.14,0.00020821,3]
[334635202,1723368648449,-500.0,0.00020821,3]
[334635203,1723368648460,-151.0,0.00020821,2]
[334635204,1723368648471,-500.0,0.00020821,3]
[334635205,1723368648482,-234.908896,0.00020821,2]
[334635206,1723368648492,-1200.36,0.00020821,3]
[334635207,1723368648502,-3129.29,0.00020821,3]
[334635208,1723368648515,-8327.39,0.00020821,3]
[334635209,1723368648530,-713.54,0.00020821,3]
[334635210,1723368648539,-506.33297888,0.00020821,3]
[334635211,1723368648549,-988.31,0.00020821,3]
[334635212,1723368648558,-1382.51,0.00020821,3]
[334635213,1723368648567,-190.64763413,0.00020821,3]
[334635214,1723368648593,-4063.36236587,0.00020821,3]
[334635215,1723368648604,-2207.88,0.00020821,3]
[334635216,1723368648615,-500.0,0.00020821,3]
[334635217,1723368648625,-338.989374,0.00020821,2]
[334635218,1723368648635,-500.0,0.00020821,3]
[334635219,1723368648644,-338.989374,0.00020821,2]
[334635220,1723368648654,-500.0,0.00020821,3]
[334635221,1723368648664,-172.906861,0.00020821,2]
[334635222,1723368648674,-11084.08,0.00020821,3]
[334635223,1723368648686,-500.0,0.00020821,3]
[334635224,1723368648696,-500.0,0.00020821,3]
[334635225,1723368648706,-502.67851192,0.00020821,3]
[334635226,1723368648716,-172.906861,0.00020821,2]
[334635227,1723368648726,-510.85610739,0.00020821,3]
[334635228,1723368648736,-151.0,0.00020821,2]
[334635229,1723368648746,-500.0,0.00020821,3]
[334635230,1723368648757,-1461.23,0.00020821,3]
[334635231,1723368648767,-500.0,0.00020821,3]
[334635232,1723368648776,-1171.37,0.00020821,3]
[334635233,1723368648786,-500.0,0.00020821,3]
[334635234,1723368648796,-500.0,0.00020821,3]
[334635235,1723368648807,-500.0,0.00020821,3]
[334635236,1723368648817,-500.0,0.00020821,3]
[334635237,1723368648826,-490.16845,0.00020821,2]
[334635238,1723368648836,-500.0,0.00020821,3]
[334635239,1723368648845,-500.0,0.00020821,3]
[334635240,1723368648855,-1872.4,0.00020821,3]
[334635241,1723368648865,-637.21,0.00020821,3]
[334635242,1723368648874,-536.76339599,0.00020821,3]
[334635243,1723368648884,-855.31,0.00020821,3]
[334635244,1723368648894,-881.02,0.00020821,3]
[334635245,1723368648903,-490.16845,0.00020821,2]
[334635246,1723368648913,-500.0,0.00020821,3]
[334635247,1723368648923,-151.0,0.00020821,2]
[334635248,1723368648932,-151.0,0.00020821,2]
[334635249,1723368648941,-385.37778877,0.00020821,3]
[334635250,1723368648951,-5640.27,0.00020821,3]
[334635251,1723368648960,-1945.78,0.00020821,3]
[334635252,1723368648972,-500.0,0.00020821,3]
[334635253,1723368648984,-502.9727646,0.00020821,3]
[334635254,1723368648999,-573.18,0.00020821,3]
[334635255,1723368649008,-503.72203065,0.00020821,3]
[334635256,1723368649018,-1808.13,0.00020821,3]
[334635257,1723368649027,-500.0,0.00020821,3]
[334635258,1723368649037,-151.0,0.00020821,2]
[334635259,1723368649048,-151.0,0.00020821,2]
[334635260,1723368649057,-500.0,0.00020821,3]
[334635261,1723368649067,-500.0,0.00020821,3]
[334635262,1723368649076,-507.26053928,0.00020821,3]
[334635263,1723368649086,-151.0,0.00020821,2]
[334635264,1723368649095,-151.0,0.00020821,2]
[334635265,1723368649104,-500.0,0.00020821,3]
[334635266,1723368649114,-500.0,0.00020821,3]
[334635267,1723368649123,-151.0,0.00020821,2]
[334635268,1723368649134,-151.0,0.00020821,2]
[334635269,1723368649143,-5767.12,0.00020821,3]
[334635270,1723368649153,-500.0,0.00020821,3]
[334635271,1723368649162,-518.28,0.00020821,3]
[334635272,1723368649176,-500.0,0.00020821,3]
[334635273,1723368649186,-518.28,0.00020821,3]
[334635274,1723368649195,-518.28,0.00020821,3]
[334635275,1723368649206,-575.7,0.00020821,3]
[334635276,1723368649216,-518.28,0.00020821,3]
[334635277,1723368649230,-518.28,0.00020821,3]
[334635278,1723368649241,-518.28,0.00020821,3]
[334635279,1723368649251,-518.28,0.00020821,3]
[334635280,1723368649260,-518.28,0.00020821,3]
[334635281,1723368649270,-518.28,0.00020821,3]
[334635282,1723368649280,-518.28,0.00020821,3]
[334635283,1723368649290,-518.28,0.00020821,3]
[334635284,1723368649302,-98.19039332,0.00020821,3]
[334635286,1723368697955,196.63865106,9.999e-05,2]
[334635287,1723368744963,152.12,0.000232,31]
[334635288,1723368745017,152.12,0.000232,31]
[334635289,1723368745093,152.12,0.000232,31]
[334635290,1723368745138,152.12,0.000232,31]
[334635291,1723368745213,152.12,0.000232,31]
[334635292,1723368745259,152.12,0.000232,31]
[334635293,1723368745323,152.12,0.000232,31]
[334635294,1723368745463,152.12,0.000232,31]
[334635295,1723368745602,152.12,0.000232,31]
[334635296,1723368745764,152.12,0.000232,31]
[334635297,1723368745816,152.12,0.000232,31]
[334635298,1723368745858,152.12,0.000232,31]
[334635299,1723368745900,152.12,0.000232,31]
[334635300,1723368745942,152.12,0.000232,31]
[334635301,1723368745983,152.12,0.000232,31]
[334635302,1723368746030,152.12,0.000232,31]
[334635303,1723368746072,152.12,0.000232,31]
[334635304,1723368746118,152.12,0.000232,31]
[334635305,1723368746164,152.12,0.000232,31]
[334635306,1723368746233,152.12,0.000232,31]
[334635308,1723368753060,471.24155498,0.0001212,2]
[334635309,1723368755335,205.59713827,0.0001212,2]
[334635310,1723368757224,209.37253615,0.0001212,2]
[334635311,1723368762033,189.91186464,0.0001212,2]
[334635312,1723368763396,532.72454116,0.0001212,2]
[334635313,1723368763748,1500.0,0.0001212,2]
[334635314,1723368764599,809.01832202,0.0001212,2]
[334635315,1723368766508,166.2706056,0.00014247,2]
[334635316,1723368769699,833.90450018,0.00015,2]
[334635317,1723368775830,225.26765097,0.0001212,2]
[334635318,1723368776577,1500.0,0.0001212,2]
[334635319,1723368783656,550.69055464,0.00015,2]
[334635320,1723368785686,1638.49285014,0.0001212,7]
[334635321,1723368786057,1265.80390438,0.0001212,2]
[334635322,1723368787620,4056.85985782,0.0001212,2]
[334635323,1723368788753,471.24155498,0.0001212,2]
[334635324,1723368797171,2280.2888261,0.0001212,3]
[334635325,1723368797960,307.30419818,0.0001212,2]
[334635326,1723368798925,168.59675648,0.0001212,2]
[334635327,1723368802034,319.99782942,0.0001212,2]
[334635328,1723368805636,203.13717281,0.0001212,2]
[334635329,1723368808283,209.37253615,0.00014691,2]
[334635330,1723368829658,704.72322293,0.00015,2]
[334635340,1723369229443,167.716207,0.00014247,2]
[334635342,1723369354142,152.15,0.000232,31]
[334635343,1723369354196,152.15,0.000232,31]
[334635344,1723369354263,152.15,0.000232,31]
[334635345,1723369354316,152.15,0.000232,31]
[334635346,1723369354541,152.15,0.000232,31]
[334635347,1723369354593,152.15,0.000232,31]
[334635348,1723369354635,152.15,0.000232,31]
[334635349,1723369354701,152.15,0.000232,31]
[334635350,1723369354742,152.15,0.000232,31]
[334635351,1723369354810,152.15,0.000232,31]
[334635352,1723369354878,152.15,0.000232,31]
[334635353,1723369354927,152.15,0.000232,31]
[334635354,1723369354975,152.15,0.000232,31]
[334635355,1723369355013,152.15,0.000232,31]
[334635356,1723369355071,152.15,0.000232,31]
[334635357,1723369355129,152.15,0.000232,31]
[334635358,1723369531154,-163.155919,0.00015478,2]
[334635359,1723369531178,-163.155919,0.00015525,2]
[334635360,1723369531200,-163.155919,0.00015573,2]
[334635361,1723369531223,-163.155919,0.0001562,2]
[334635362,1723369531246,-163.155919,0.00015668,2]
[334635363,1723369531269,-163.155919,0.00015715,2]
[334635364,1723369531291,-163.155919,0.00015762,2]
[334635365,1723369531314,-163.155919,0.0001581,2]
[334635366,1723369531337,-163.155919,0.00015857,2]
[334635367,1723369531359,-163.155919,0.00015905,2]
[334635368,1723369531384,-163.155919,0.00015952,2]
[334635369,1723369531406,-163.155919,0.00016,2]
[334635370,1723369531428,-163.155919,0.00016047,2]
[334635371,1723369531451,-163.155919,0.00016095,2]
[334635372,1723369531473,-163.155919,0.00016142,2]
[334635373,1723369531495,-154.76012181,0.00016159,2]
[334635374,1723369531518,-1384.13048712,0.00016159,2]
[334635375,1723369531542,-154.76012181,0.00016159,2]
[334635376,1723369531566,-163.155919,0.0001619,2]
[334635377,1723369531590,-163.155919,0.00016237,2]
[334635378,1723369531615,-163.155919,0.00016284,2]
[334635379,1723369531647,-300.0,0.00016334,2]
[334635380,1723369531672,-300.0,0.00016334,2]
[334635381,1723369531698,-24900.0,0.00016335,2]
[334635382,1723369531721,-122.96338582,0.00016336,2]
[334635383,1723369540748,10000.0,0.00027,120]
[334635384,1723369550463,10000.0,0.0002333,30]